bitfinex-derivatives/quotes_BTCF0:USTF0_20260127
["timestamp","ask_amount","ask_price","bid_price","bid_amount"]
[1769555317558,0.00258838,89310.0,89302.0,0.00908821]
[1769555321767,0.011207,89335.0,89319.0,0.00908821]
[1769555321973,0.0008632,89335.0,89321.0,0.00908821]
[1769555322174,0.0008632,89335.0,89323.0,0.00908821]
[1769555322472,0.12367468,89333.0,89320.0,0.3962]
[1769555322672,0.11430828,89330.0,89320.0,0.398788]
[1769555322872,0.12637948,89330.0,89320.0,0.398788]
[1769555323665,0.12637948,89330.0,89320.0,0.40787621]
[1769555325068,0.011208,89328.0,89320.0,0.00908821]
[1769555325376,0.011209,89325.0,89320.0,0.10088]
[1769555325575,0.0120722,89325.0,89320.0,0.10088]
[1769555325768,0.0008632,89325.0,89320.0,0.10088]
[1769555327676,0.011208,89328.0,89320.0,0.10088]
[1769555327880,0.11430828,89330.0,89320.0,0.103468]
[1769555328065,0.11517148,89330.0,89320.0,0.11255621]
[1769555328572,0.011207,89339.0,89325.0,0.00908821]
[1769555328869,0.011207,89335.0,89327.0,0.00908821]
[1769555329077,0.0008632,89334.0,89327.0,0.002588]
[1769555329970,0.0008632,89334.0,89320.0,0.10088]
[1769555330171,0.0008632,89334.0,89320.0,0.10996821]
[1769555330778,0.011208,89330.0,89321.0,0.00908821]
[1769555331181,0.011208,89328.0,89321.0,0.00908821]
[1769555331876,0.00258838,89327.0,89321.0,0.00908821]
[1769555332184,0.12551628,89331.0,89321.0,0.00908821]
[1769555332385,0.011208,89329.0,89321.0,0.00908821]
[1769555332586,0.01379638,89329.0,89321.0,0.00908821]
[1769555334385,0.011207,89340.0,89322.0,0.0092655]
[1769555334386,0.011207,89338.0,89322.0,0.0092655]
[1769555334589,0.00258838,89337.0,89325.0,0.0092655]
[1769555334878,0.011208,89334.0,89325.0,0.0092655]
[1769555335088,0.01379638,89333.0,89325.0,0.0092655]
[1769555335385,0.00258838,89333.0,89321.0,0.0092655]
[1769555335988,0.011208,89327.0,89321.0,0.0092655]
[1769555338594,0.00258838,89326.0,89303.0,0.16762117]
[1769555338889,0.01379738,89326.0,89311.0,0.01121]
[1769555339087,0.01379738,89326.0,89313.0,0.01121]
[1769555339593,0.00258838,89326.0,89315.0,0.01121]
[1769555339781,0.00957905,89332.0,89312.0,0.42244]
[1769555339982,0.00957905,89336.0,89323.0,0.011209]
[1769555340290,0.00258838,89336.0,89321.0,0.011209]
[1769555340680,0.011207,89335.0,89322.0,0.00521035]
[1769555340880,0.01379538,89335.0,89322.0,0.00521035]
[1769555341176,0.04723417,89347.0,89329.0,0.00521035]
[1769555341383,0.00258838,89346.0,89334.0,0.00521035]
[1769555342284,0.011206,89343.0,89334.0,0.00521035]
[1769555342485,0.011207,89341.0,89325.0,0.00483947]
[1769555342693,0.11689666,89340.0,89325.0,0.00483947]
[1769555342879,0.11689666,89340.0,89327.0,0.00483947]
[1769555342880,0.00258838,89340.0,89327.0,0.00483947]
[1769555343086,0.00258838,89340.0,89329.0,0.00483947]
[1769555343492,0.011207,89339.0,89329.0,0.00483947]
[1769555343688,0.00258838,89338.0,89329.0,0.00483947]
[1769555345694,0.011207,89339.0,89329.0,0.00483947]
[1769555345890,0.11430828,89340.0,89329.0,0.00483947]
[1769555346095,0.011207,89338.0,89329.0,0.00483947]
[1769555346295,0.01379538,89338.0,89329.0,0.00483947]
[1769555347089,0.00258838,89338.0,89330.0,0.00481022]
[1769555347296,0.00957905,89346.0,89330.0,0.00481022]
[1769555347494,0.00258838,89345.0,89330.0,0.00481022]
[1769555347695,0.02078505,89344.0,89330.0,0.00481022]
[1769555347885,0.00258838,89343.0,89330.0,0.00481022]
[1769555348085,0.00258838,89343.0,89331.0,0.00481022]
[1769555348286,0.00258838,89343.0,89333.0,0.00481022]
[1769555349182,0.00957905,89349.0,89333.0,0.01601822]
[1769555349490,0.00258838,89348.0,89334.0,0.004607]
[1769555349700,0.02337343,89348.0,89334.0,0.004607]
[1769555350285,0.011206,89347.0,89334.0,0.004607]
[1769555350487,0.00258838,89346.0,89334.0,0.004607]
[1769555351687,0.00957905,89345.0,89331.0,0.011208]
[1769555351999,0.00258838,89344.0,89332.0,0.00459864]
[1769555352596,0.00258838,89344.0,89333.0,0.00459864]
[1769555353095,0.011206,89343.0,89333.0,0.00459864]
[1769555353398,0.01379438,89343.0,89333.0,0.00459864]
[1769555353697,0.00258838,89343.0,89333.0,0.00459864]
[1769555354689,0.011206,89346.0,89333.0,0.00459864]
[1769555354894,0.11689666,89343.0,89330.0,0.00463678]
[1769555355096,0.11430828,89340.0,89330.0,0.00463678]
[1769555355397,0.011207,89339.0,89330.0,0.00463678]
[1769555355595,0.01379538,89339.0,89330.0,0.00463678]
[1769555356196,0.011207,89337.0,89330.0,0.00463678]
[1769555356396,0.01379538,89337.0,89330.0,0.00463678]
[1769555356598,0.00258838,89337.0,89330.0,0.00463678]
[1769555357597,0.11430828,89340.0,89330.0,0.00463678]
[1769555358197,0.011207,89339.0,89330.0,0.00463678]
[1769555358404,0.011207,89337.0,89330.0,0.00463678]
[1769555359596,0.011207,89337.0,89329.0,0.18986034]
[1769555359800,0.12551528,89340.0,89329.0,0.18986034]
[1769555360094,0.11430828,89340.0,89330.0,0.00420191]
[1769555360798,0.11689666,89340.0,89330.0,0.00420191]
[1769555361310,0.011207,89339.0,89330.0,0.00420191]
[1769555361599,0.11689666,89340.0,89330.0,0.00420191]
[1769555362702,0.011207,89339.0,89330.0,0.00420191]
[1769555362891,0.01379538,89339.0,89330.0,0.00420191]
[1769555363800,0.011207,89337.0,89330.0,0.00420191]
[1769555363996,0.011207,89338.0,89330.0,0.00420191]
[1769555364903,0.011207,89338.0,89329.0,0.18986034]
[1769555366404,0.011207,89338.0,89329.0,0.19425486]
[1769555368204,0.011207,89338.0,89330.0,0.08898034]
[1769555370005,0.00258838,89339.0,89331.0,0.00453053]
[1769555370208,0.11430828,89340.0,89331.0,0.00453053]
[1769555370504,0.00907934,89343.0,89331.0,0.00453053]
[1769555370906,0.011206,89342.0,89331.0,0.00453053]
[1769555371095,0.01379538,89341.0,89331.0,0.00453053]
[1769555371299,0.01379538,89341.0,89331.0,0.09351087]
[1769555372308,0.011207,89340.0,89331.0,0.09351087]
[1769555372804,0.011207,89339.0,89331.0,0.09351087]
[1769555373101,0.00258838,89341.0,89331.0,0.09351087]
[1769555373301,0.011207,89337.0,89331.0,0.09351087]
[1769555373701,0.011207,89339.0,89331.0,0.09351087]
[1769555374202,0.011207,89338.0,89331.0,0.09351087]
[1769555374408,0.00258838,89341.0,89331.0,0.09351087]
[1769555374795,0.011207,89339.0,89331.0,0.09351087]
[1769555374999,0.01379538,89341.0,89331.0,0.09351087]
[1769555375707,0.00258838,89341.0,89331.0,0.09351087]
[1769555375908,0.00258838,89341.0,89331.0,0.10471887]
[1769555376607,0.00258838,89341.0,89332.0,0.01597815]
[1769555376806,0.02028534,89347.0,89334.0,0.00477015]
[1769555377007,0.02287372,89346.0,89334.0,0.00477015]
[1769555377703,0.011206,89344.0,89334.0,0.00477015]
[1769555377904,0.011207,89340.0,89332.0,0.08898034]
[1769555378812,0.01379538,89340.0,89332.0,0.08898034]
[1769555379005,0.011207,89339.0,89332.0,0.08898034]
[1769555379413,0.00258838,89339.0,89332.0,3.4e-07]
[1769555379724,0.011207,89338.0,89329.0,0.10565015]
[1769555379914,0.01379538,89337.0,89329.0,0.10565015]
[1769555380308,0.011207,89336.0,89329.0,0.10565015]
[1769555380614,0.011208,89331.0,89324.0,0.43568]
[1769555380908,0.00258838,89330.0,89324.0,0.43568]
[1769555383816,0.011208,89327.0,89321.0,7.38e-05]
[1769555384214,0.01379638,89327.0,89321.0,7.38e-05]
[1769555384516,0.00258838,89327.0,89321.0,7.38e-05]
[1769555385308,0.01256372,89327.0,89315.0,7.397e-05]
[1769555385509,0.011209,89324.0,89316.0,0.36436]
[1769555385708,0.00258838,89323.0,89315.0,0.36436]
[1769555385915,0.011209,89319.0,89306.0,7.397e-05]
[1769555386107,0.01379838,89318.0,89306.0,0.43739397]
[1769555386625,0.00258838,89318.0,89306.0,0.43739397]
[1769555386917,0.0211686,89317.0,89306.0,0.43739397]
[1769555387237,0.0211686,89317.0,89306.0,0.43732]
[1769555387238,0.01121,89313.0,89306.0,0.43732]
[1769555387410,0.01121,89313.0,89303.0,0.10088]
[1769555387411,0.00258838,89312.0,89303.0,0.10088]
[1769555388302,0.011211,89308.0,89303.0,0.10088]
[1769555388506,0.00258838,89307.0,89303.0,0.10088]
[1769555388714,0.00258838,89307.0,89297.0,0.43808]
[1769555389110,0.00969817,89305.0,89292.0,0.00090547]
[1769555389315,0.00969817,89305.0,89292.0,0.43918547]
[1769555389316,0.00258838,89304.0,89292.0,0.43918547]
[1769555389610,0.00969817,89312.0,89295.0,0.00090547]
[1769555389820,0.01228655,89311.0,89295.0,0.00090547]
[1769555390405,0.00258838,89311.0,89296.0,0.00090547]
[1769555390609,0.00258838,89311.0,89300.0,0.00093303]
[1769555390809,0.00258838,89311.0,89301.0,0.00093303]
[1769555394622,0.00258838,89311.0,89302.0,0.011211]
[1769555394813,0.00968898,89315.0,89302.0,0.011211]
[1769555395124,0.01227736,89315.0,89301.0,0.00093303]
[1769555396928,0.0094943,89314.0,89301.0,0.00093303]
[1769555397122,0.00258838,89313.0,89301.0,0.00093303]
[1769555397425,0.00258838,89313.0,89303.0,0.011211]
[1769555397620,0.011207,89334.0,89292.0,0.43828]
[1769555397621,0.0094943,89327.0,89306.0,0.00151707]
[1769555397819,0.11467638,89326.0,89311.0,0.00151707]
[1769555398222,0.0094943,89325.0,89311.0,0.00151707]
[1769555398425,0.00258838,89324.0,89311.0,0.00151707]
[1769555398624,0.01379738,89324.0,89311.0,0.00151707]
[1769555398824,0.02329235,89324.0,89311.0,0.00151707]
[1769555399021,0.01208335,89324.0,89311.0,0.00151707]
[1769555399221,0.011209,89323.0,89311.0,0.00151707]
[1769555399423,0.00258838,89322.0,89311.0,0.00151707]
[1769555400429,0.011209,89321.0,89306.0,0.00151508]
[1769555400621,0.00258838,89320.0,89306.0,0.00151508]
[1769555400817,0.00258838,89320.0,89307.0,0.01170661]
[1769555401129,0.00258838,89320.0,89307.0,0.00049561]
[1769555401333,0.00258838,89320.0,89310.0,0.01170561]
[1769555402132,0.00258838,89320.0,89310.0,0.00049561]
[1769555402331,0.00983479,89315.0,89300.0,0.011212]
[1769555402532,0.00983479,89313.0,89295.0,0.00049561]
[1769555402728,0.00996924,89311.0,89296.0,9.225e-05]
[1769555403032,0.011211,89304.0,89294.0,0.10088]
[1769555403330,0.01255762,89303.0,89294.0,0.10088]
[1769555403531,0.00996924,89302.0,89294.0,0.10088]
[1769555403729,0.00258838,89301.0,89294.0,0.10088]
[1769555403931,0.00258838,89301.0,89287.0,9.225e-05]
[1769555403932,0.01255762,89301.0,89287.0,9.225e-05]
[1769555404127,0.00996924,89300.0,89287.0,9.225e-05]
[1769555404431,0.10088,89314.0,89284.0,0.10088]
[1769555404432,0.00996924,89298.0,89284.0,0.112094]
[1769555404731,0.00258838,89298.0,89284.0,0.10088]
[1769555404923,0.00258838,89298.0,89292.0,0.011213]
[1769555405119,0.01015602,89303.0,89292.0,0.011213]
[1769555405330,0.00258838,89302.0,89292.0,0.011213]
[1769555405730,0.10088,89305.0,89292.0,0.011213]
[1769555406029,0.00258838,89304.0,89292.0,0.011213]
[1769555406231,0.00258838,89304.0,89289.0,0.011213]
[1769555406432,0.00258838,89304.0,89290.0,0.00032162]
[1769555406929,0.00258838,89304.0,89293.0,0.01153462]
[1769555407633,0.00258838,89304.0,89295.0,0.011212]
[1769555409338,0.00258838,89304.0,89295.0,0.01150408]
[1769555410434,0.00258838,89304.0,89297.0,0.011212]
[1769555410634,0.01015602,89307.0,89297.0,0.011212]
[1769555410937,0.0127444,89307.0,89297.0,0.011212]
[1769555411436,0.10088,89308.0,89297.0,0.00029609]
[1769555411635,0.10346838,89308.0,89297.0,0.00029609]
[1769555411835,0.00258838,89308.0,89300.0,0.011212]
[1769555412030,0.0099013,89313.0,89301.0,0.00258838]
[1769555412236,0.10088,89310.0,89301.0,0.00258838]
[1769555412531,0.10174282,89310.0,89301.0,0.00258838]
[1769555413228,0.011211,89309.0,89301.0,0.00258838]
[1769555413429,0.00086282,89308.0,89301.0,0.00258838]
[1769555413737,0.011211,89307.0,89297.0,0.00029609]
[1769555413935,0.00086282,89306.0,89297.0,0.00288447]
[1769555415438,0.011211,89305.0,89293.0,0.00016887]
[1769555415636,0.00100589,89304.0,89294.0,0.00244531]
[1769555416338,0.0099437,89303.0,89294.0,0.00244531]
[1769555416539,0.00100589,89304.0,89294.0,0.00244531]
[1769555416540,0.01094959,89302.0,89294.0,0.00244531]
[1769555416937,0.01094959,89302.0,89284.0,0.10088]
[1769555417248,0.00995625,89296.0,89277.0,0.01140649]
[1769555417435,0.00995625,89294.0,89281.0,0.01134523]
[1769555417639,0.00100589,89293.0,89281.0,0.00257654]
[1769555417938,0.00100589,89293.0,89282.0,0.011214]
[1769555418140,0.00100589,89293.0,89281.0,0.00257654]
[1769555418940,0.00100589,89293.0,89283.0,0.011214]
[1769555419136,0.00100589,89293.0,89283.0,0.00244531]
[1769555419540,0.00100589,89293.0,89281.0,0.00013123]
[1769555420738,0.00100589,89293.0,89282.0,0.01365931]
[1769555420943,0.00100589,89293.0,89282.0,0.00244531]
[1769555421242,0.00968313,89298.0,89284.0,0.01216459]
[1769555421443,0.00968313,89298.0,89285.0,0.00258838]
[1769555421744,0.00968313,89298.0,89286.0,0.011213]
[1769555422038,0.00968313,89298.0,89287.0,0.00258838]
[1769555422642,0.00968313,89298.0,89287.0,0.01380138]
[1769555422947,0.00968313,89298.0,89287.0,0.00258838]
[1769555427047,0.011212,89297.0,89287.0,0.00258838]
[1769555427246,0.011212,89295.0,89284.0,0.00095059]
[1769555427545,0.02058379,89294.0,89280.0,0.10088]
[1769555427744,0.00937079,89294.0,89281.0,0.00258838]
[1769555427941,0.00937079,89294.0,89282.0,0.011214]
[1769555428148,0.00937079,89298.0,89285.0,0.00188762]
[1769555428347,0.10088,89301.0,89288.0,0.01310062]
[1769555428548,0.10088,89301.0,89289.0,0.00258838]
[1769555428847,0.11025208,89301.0,89289.0,0.00258838]
[1769555429046,0.29528,89315.0,89294.0,0.01309575]
[1769555429241,0.011211,89308.0,89295.0,0.00447213]
[1769555429441,0.00937208,89310.0,89295.0,0.00447213]
[1769555429640,0.011211,89307.0,89295.0,0.00447213]
[1769555429845,0.00937208,89306.0,89295.0,0.00258838]
[1769555430042,0.011211,89304.0,89295.0,0.00258838]
[1769555431453,0.0205534,89304.0,89295.0,0.00258838]
[1769555432239,0.0093424,89303.0,89295.0,0.00258838]
[1769555432639,0.0205534,89303.0,89295.0,0.00258838]
[1769555433447,0.02051153,89311.0,89297.0,0.011212]
[1769555433648,0.10088,89310.0,89298.0,0.00258838]
[1769555433848,0.11018153,89310.0,89298.0,0.00258838]
[1769555434249,0.00930153,89309.0,89298.0,0.00258838]
[1769555435056,0.00931689,89314.0,89307.0,0.011211]
[1769555435352,0.10088,89318.0,89308.0,0.00258838]
[1769555435852,0.10088,89318.0,89303.0,0.00204931]
[1769555436055,0.10088,89318.0,89298.0,0.00923158]
[1769555436255,0.10088,89318.0,89299.0,0.00258838]
[1769555436852,0.01121,89312.0,89299.0,0.00258838]
[1769555437351,0.00928394,89311.0,89299.0,0.01380038]
[1769555437551,0.00928394,89311.0,89300.0,0.011212]
[1769555437745,0.00928394,89311.0,89301.0,0.00258838]
[1769555439641,0.00928394,89309.0,89301.0,0.00258838]
[1769555448142,0.00928394,89314.0,89301.0,0.01181996]
[1769555448446,0.10088,89320.0,89308.0,0.00923158]
[1769555448642,0.011207,89339.0,89312.0,0.01121]
[1769555448847,0.011208,89329.0,89314.0,0.00923158]
[1769555449048,0.11431026,89330.0,89315.0,0.00258838]
[1769555449253,0.011208,89327.0,89315.0,0.00258838]
[1769555450245,0.00928394,89326.0,89315.0,0.00258838]
[1769555451260,0.00928394,89325.0,89315.0,0.00258838]
[1769555451553,0.00928394,89325.0,89310.0,0.01121]
[1769555451754,0.00928394,89325.0,89311.0,0.00258838]
[1769555455753,0.00928394,89325.0,89312.0,0.01121]
[1769555455952,0.00928394,89325.0,89313.0,0.00258838]
[1769555457359,0.00928394,89325.0,89314.0,0.01121]
[1769555457561,0.00928394,89325.0,89315.0,0.00258838]
[1769555459063,0.02111331,89323.0,89315.0,0.00258838]
[1769555459364,0.00990431,89322.0,89308.0,0.00923158]
[1769555459557,0.00990431,89322.0,89309.0,0.00258838]
[1769555460764,0.011209,89321.0,89309.0,0.00258838]
[1769555460957,0.00990431,89322.0,89309.0,0.00258838]
[1769555461153,0.011208,89334.0,89309.0,0.00258838]
[1769555461154,0.00990431,89338.0,89318.0,0.00973916]
[1769555461457,0.00990431,89333.0,89319.0,0.00258838]
[1769555462066,0.02111231,89333.0,89319.0,0.00258838]
[1769555462265,0.011208,89331.0,89319.0,0.00258838]
[1769555462456,0.00990431,89332.0,89319.0,0.00258838]
[1769555466366,0.12421457,89340.0,89321.0,0.00973916]
[1769555466566,0.00990431,89339.0,89322.0,0.00258838]
[1769555467368,0.00990431,89339.0,89322.0,0.01379738]
[1769555467867,0.00990431,89335.0,89322.0,0.00258838]
[1769555472155,0.00990431,89335.0,89322.0,0.01379738]
[1769555472360,0.00990431,89335.0,89322.0,0.00258838]
[1769555473468,0.00990431,89331.0,89314.0,0.10088]
[1769555473657,0.00990431,89331.0,89315.0,0.00258838]
[1769555476562,0.00990431,89331.0,89320.0,0.11431026]
[1769555476769,0.00990431,89338.0,89321.0,0.01232754]
[1769555477168,0.00990431,89338.0,89322.0,0.011209]
[1769555477470,0.00990431,89337.0,89323.0,0.00258838]
[1769555477672,0.00990431,89337.0,89319.0,0.011209]
[1769555477871,0.00990431,89337.0,89323.0,0.00258838]
[1769555479279,0.00990431,89335.0,89313.0,0.10088]
[1769555479573,0.00990431,89333.0,89318.0,0.00086282]
[1769555479779,0.00990431,89331.0,89318.0,0.00086282]
[1769555479971,0.00990431,89329.0,89318.0,0.01207182]
[1769555481076,0.00990431,89329.0,89318.0,0.00086282]
[1769555481578,0.01249269,89329.0,89318.0,0.00086282]
[1769555482476,0.01249269,89329.0,89319.0,0.011209]
[1769555482677,0.00990431,89332.0,89320.0,0.00086282]
[1769555482979,0.01249269,89329.0,89320.0,0.00086282]
[1769555485678,0.009641,89328.0,89320.0,0.00086282]
[1769555485868,0.009641,89326.0,89320.0,0.00086282]
[1769555486367,0.01222938,89326.0,89316.0,0.01121]
[1769555486567,0.009641,89325.0,89314.0,0.01121]
[1769555486871,0.00258838,89324.0,89313.0,0.11061916]
[1769555487174,0.00258838,89324.0,89298.0,0.22368954]
[1769555487175,0.02085,89322.0,89306.0,0.011211]
[1769555487381,0.009641,89318.0,89304.0,0.011211]
[1769555487568,0.009641,89316.0,89304.0,0.011211]
[1769555487768,0.009641,89314.0,89304.0,0.011211]
[1769555488070,0.01222938,89314.0,89305.0,0.011211]
[1769555488671,0.01222938,89314.0,89307.0,0.011211]
[1769555488975,0.01222938,89314.0,89301.0,0.10088]
[1769555489391,0.01222938,89314.0,89307.0,0.011211]
[1769555489884,0.01222938,89314.0,89302.0,0.011211]
[1769555490284,0.01222938,89314.0,89310.0,0.01121]
[1769555490582,0.21519026,89323.0,89304.0,0.02075076]
[1769555490583,0.10088,89323.0,89304.0,0.02075076]
[1769555490784,0.00258838,89322.0,89313.0,0.01121]
[1769555492482,0.009641,89321.0,89313.0,0.01121]
[1769555492682,0.01222938,89320.0,89313.0,0.01121]
[1769555492980,0.01222938,89320.0,89307.0,0.00953976]
[1769555493173,0.00258838,89320.0,89307.0,0.00953976]
[1769555493374,0.00258838,89320.0,89317.0,0.01121]
[1769555493574,0.009641,89322.0,89315.0,0.01121]
[1769555493774,0.01050382,89322.0,89315.0,0.01121]
[1769555494184,0.01050382,89322.0,89316.0,0.01121]
[1769555495383,0.01050382,89322.0,89313.0,0.01121]
[1769555495883,0.01050382,89322.0,89314.0,0.01121]
[1769555497980,0.11431026,89330.0,89316.0,0.01121]
[1769555498170,0.11431026,89340.0,89317.0,0.01212814]
[1769555498377,0.50376512,89339.0,89322.0,0.011209]
[1769555498577,0.1068223,89338.0,89323.0,0.00258838]
[1769555498781,0.10768512,89337.0,89323.0,0.00258838]
[1769555498980,0.1068223,89336.0,89323.0,0.00258838]
[1769555499181,0.20856512,89335.0,89323.0,0.00258838]
[1769555499381,0.1068223,89334.0,89323.0,0.00258838]
[1769555499576,0.00086282,89333.0,89323.0,0.01212814]
[1769555500277,0.00086282,89333.0,89323.0,0.00258838]
[1769555501087,0.01050382,89333.0,89323.0,0.00258838]
[1769555503388,0.00086282,89333.0,89324.0,0.00953976]
[1769555503591,0.009641,89334.0,89325.0,0.00258838]
[1769555503892,0.00086282,89333.0,89325.0,0.00258838]
[1769555506691,0.009641,89334.0,89325.0,0.00258838]
[1769555508095,0.01050382,89334.0,89325.0,0.00258838]
[1769555513895,0.01050382,89334.0,89325.0,0.01379738]
[1769555514198,0.00086282,89334.0,89326.0,0.011208]
[1769555514402,0.00086282,89334.0,89327.0,0.00258838]
[1769555514902,0.10088,89335.0,89327.0,0.00258838]
[1769555515302,0.10174282,89335.0,89327.0,0.00258838]
[1769555517896,0.11133629,89335.0,89327.0,0.00258838]
[1769555518707,0.00959347,89334.0,89320.0,0.011209]
[1769555518897,0.00959347,89332.0,89320.0,0.011209]
[1769555519098,0.00959347,89331.0,89320.0,0.011209]
[1769555519297,0.01218185,89331.0,89320.0,0.011209]
[1769555519498,0.01218185,89331.0,89315.0,0.00981266]
[1769555519807,0.00959347,89330.0,89316.0,0.01121]
[1769555520004,0.00258838,89329.0,89316.0,0.01121]
[1769555520408,0.01218185,89329.0,89316.0,0.01121]
[1769555521606,0.00959347,89327.0,89313.0,0.10088]
[1769555521803,0.00959347,89325.0,89313.0,0.11209]
[1769555522106,0.01218185,89324.0,89313.0,0.11209]
[1769555522493,0.01218185,89324.0,89313.0,0.10088]
[1769555522703,0.01218185,89324.0,89315.0,0.01121]
[1769555523310,0.00258838,89324.0,89315.0,0.01121]
[1769555523510,0.00258838,89324.0,89313.0,0.12190266]
[1769555525109,0.00258838,89324.0,89313.0,0.11069266]
[1769555526319,0.00959347,89322.0,89300.0,0.11069266]
[1769555526609,0.00743333,89320.0,89302.0,0.011211]
[1769555526812,0.00758304,89318.0,89302.0,0.011211]
[1769555527011,0.00758304,89316.0,89302.0,0.011211]
[1769555527207,0.00258838,89315.0,89300.0,0.11069266]
[1769555527412,0.01017142,89315.0,89300.0,0.11069266]
[1769555527610,0.01017142,89315.0,89305.0,0.011211]
[1769555528004,0.00758304,89314.0,89303.0,0.011211]
[1769555528205,0.00258838,89313.0,89303.0,0.011211]
[1769555528508,0.00820133,89312.0,89300.0,0.10088]
[1769555528708,0.00820133,89310.0,89302.0,0.011211]
[1769555529214,0.01078971,89310.0,89300.0,0.112092]
[1769555529412,0.01078971,89310.0,89302.0,0.011211]
[1769555530615,0.01078971,89310.0,89300.0,0.10088]
[1769555530908,0.00593202,89314.0,89301.0,0.00981266]
[1769555531115,0.00593202,89322.0,89301.0,0.00981266]
[1769555531315,0.00593202,89320.0,89301.0,0.00981266]
[1769555531514,0.00593202,89318.0,89301.0,0.00981266]
[1769555531701,0.00258838,89317.0,89301.0,0.00981266]
[1769555532014,0.0085204,89317.0,89301.0,0.00981266]
[1769555532215,0.0085204,89317.0,89305.0,0.011211]
[1769555532408,0.00593202,89316.0,89302.0,0.011211]
[1769555532606,0.00258838,89315.0,89302.0,0.011211]
[1769555534712,0.00258838,89315.0,89303.0,0.00981266]
[1769555535319,0.00258838,89315.0,89305.0,0.011211]
[1769555537111,0.00258838,89315.0,89306.0,0.011211]
[1769555538919,0.00258838,89315.0,89303.0,0.02102366]
[1769555539618,0.00258838,89315.0,89304.0,0.011211]
[1769555540517,0.00258838,89315.0,89303.0,0.00981266]
[1769555541522,0.00258838,89315.0,89304.0,0.00981266]
[1769555543221,0.00258838,89315.0,89306.0,0.011211]
[1769555544725,0.00258838,89315.0,89304.0,0.02102366]
[1769555546537,0.00258838,89315.0,89304.0,0.00981266]
[1769555554138,0.00258838,89315.0,89305.0,0.0210274]
[1769555554329,0.00258838,89315.0,89306.0,0.011211]
[1769555554733,0.00258838,89315.0,89306.0,0.0210274]
[1769555555241,0.00258838,89315.0,89309.0,0.0098164]
[1769555561946,0.00258838,89315.0,89304.0,0.011211]
[1769555564048,0.00258838,89315.0,89305.0,0.0098164]
[1769555565149,0.00258838,89315.0,89305.0,0.0210274]
[1769555565350,0.00258838,89315.0,89306.0,0.0098164]
[1769555568151,0.00258838,89315.0,89302.0,0.0210274]
[1769555568351,0.00258838,89315.0,89303.0,0.0098164]
[1769555574861,0.01379838,89315.0,89303.0,0.0098164]
[1769555575058,0.00258838,89315.0,89303.0,0.0098164]
[1769555576462,0.00258838,89315.0,89304.0,0.020305]
[1769555576759,0.00258838,89315.0,89304.0,0.009094]
[1769555578263,0.00258838,89315.0,89307.0,0.020305]
[1769555578457,0.00258838,89315.0,89308.0,0.011211]
[1769555578657,0.00258838,89315.0,89308.0,0.020305]
[1769555579664,0.00258838,89315.0,89308.0,0.009094]
[1769555583272,0.00258838,89315.0,89309.0,0.009094]
[1769555584071,0.10088,89317.0,89310.0,0.009094]
[1769555584258,0.00258838,89314.0,89310.0,0.009094]
[1769555584658,0.09088,89317.0,89311.0,0.00258838]
[1769555584858,0.40018282,89317.0,89312.0,0.009094]
[1769555585566,0.40018282,89317.0,89311.0,0.00258838]
[1769555586871,0.40018282,89317.0,89308.0,0.009094]
[1769555587170,0.40018282,89317.0,89308.0,0.01168238]
[1769555592377,0.40018282,89317.0,89309.0,0.01121]
[1769555592578,0.40018282,89317.0,89310.0,0.00258838]
[1769555592966,0.40018282,89317.0,89308.0,0.009094]
[1769555593170,0.40018282,89317.0,89308.0,0.01168238]
[1769555593783,0.40018282,89317.0,89309.0,0.011211]
[1769555593972,0.40018282,89317.0,89309.0,0.01379938]
[1769555598176,0.30184,89316.0,89310.0,0.009094]
[1769555598480,0.00944945,89323.0,89311.0,0.00258838]
[1769555598680,0.00944945,89321.0,89306.0,0.009094]
[1769555598978,0.00944945,89321.0,89307.0,0.00258838]
[1769555599379,0.00944945,89321.0,89310.0,0.01121]
[1769555599579,0.00944945,89321.0,89311.0,0.00258838]
[1769555605791,0.00944945,89321.0,89311.0,0.01379838]
[1769555607190,0.00944945,89321.0,89311.0,0.00258838]
[1769555607787,0.02645184,89329.0,89313.0,0.01121]
[1769555607986,0.39612,89328.0,89315.0,0.00947496]
[1769555608191,0.39612,89328.0,89316.0,0.00258838]
[1769555609093,0.39612,89328.0,89317.0,0.01121]
[1769555609292,0.39612,89328.0,89318.0,0.00258838]
[1769555609485,0.02645184,89329.0,89320.0,0.00947496]
[1769555609683,0.25511176,89328.0,89321.0,0.01206334]
[1769555610092,0.25511176,89328.0,89321.0,0.00258838]
[1769555615991,0.00952704,89333.0,89321.0,0.00258838]
[1769555615992,0.29595296,89330.0,89321.0,0.01379738]
[1769555616190,0.29595296,89330.0,89323.0,0.011209]
[1769555616391,0.29595296,89330.0,89324.0,0.00258838]
[1769555616796,0.29595296,89330.0,89318.0,0.02068396]
[1769555616994,0.29595296,89330.0,89319.0,0.00258838]
[1769555617197,0.30548,89330.0,89319.0,0.00258838]
[1769555617593,0.29595296,89330.0,89321.0,0.00947496]
[1769555617787,0.29595296,89330.0,89322.0,0.00258838]
[1769555619499,0.30548,89330.0,89322.0,0.00258838]
[1769555619701,0.30548,89330.0,89322.0,0.01379738]
[1769555620093,0.29595296,89330.0,89324.0,0.011209]
[1769555620292,0.29595296,89330.0,89329.0,0.00258838]
[1769555620706,0.29595296,89330.0,89324.0,0.011209]
[1769555620897,0.29595296,89330.0,89325.0,0.00086282]
[1769555621200,0.00952704,89333.0,89325.0,0.00086282]
[1769555621801,0.00952704,89332.0,89325.0,0.00086282]
[1769555622001,0.01211542,89332.0,89325.0,0.00086282]
[1769555622604,0.00952704,89331.0,89325.0,0.00086282]
[1769555625207,0.01211542,89331.0,89325.0,0.00086282]
[1769555625409,0.00952704,89330.0,89320.0,0.011209]
[1769555625607,0.01211542,89330.0,89320.0,0.011209]
[1769555626309,0.00952704,89329.0,89320.0,0.011209]
[1769555628009,0.00952704,89329.0,89319.0,0.011209]
[1769555628506,0.30648,89334.0,89316.0,0.00947496]
[1769555628710,0.30906838,89334.0,89316.0,0.00947496]
[1769555629710,0.30906838,89334.0,89317.0,0.011209]
[1769555630516,0.00952704,89333.0,89319.0,0.011209]
[1769555630813,0.00952704,89331.0,89316.0,0.00947496]
[1769555631016,0.01211542,89331.0,89316.0,0.00947496]
[1769555632519,0.01211542,89331.0,89319.0,0.011209]
[1769555633021,0.01211542,89331.0,89321.0,0.011209]
[1769555634521,0.01211542,89331.0,89316.0,0.00947496]
[1769555634721,0.01211542,89331.0,89317.0,0.00942213]
[1769555635021,0.00952704,89331.0,89324.0,0.011209]
[1769555635524,0.011205,89355.0,89322.0,0.00942213]
[1769555635525,0.00907375,89340.0,89322.0,0.00942213]
[1769555635719,0.00907375,89340.0,89330.0,0.011208]
[1769555635920,0.00907375,89340.0,89331.0,0.011208]